[Event "European School-ch 2019"]
[Site "Mamaia"]
[Date "2019.06.06"]
[Round "7.26"]
[White "Sapocinic, Semion"]
[Black "Kotolashvili, Davit"]
[Result "1-0"]
[ECO "C90"]
[WhiteElo "1697"]
[BlackElo "1374"]
[Annotator "NA RC"]
[PlyCount "102"]
[EventDate "2019.05.31"]
[EventType "swiss"]
[EventCountry "ROU"]
[SourceTitle "playchess.com"]
[Source "ChessBase"]
[SourceQuality "1"]
[TimeControl "40/5400+30:1800+30"]

1. e4 {[%emt 0:00:00]} e5 {[%emt 0:00:00]} 2. Nf3 {[%emt 0:00:00]} Nc6 {[%emt 0:00:00]} 3. Bb5 {[%emt 0:00:04]} a6 {[%emt 0:00:00]} 4. Ba4 {[%emt 0:00:07]} Nf6 {[%emt 0:00:00]} 5. d3 {[%emt 0:00:57]} b5 {[%emt 0:00:13]} 6. Bb3 {[%emt 0:00:07]} Be7 {[%emt 0:00:10]} 7. O-O {[%emt 0:00:30]} O-O {[%emt 0:00:06]} 8. Re1 {[%emt 0:00:21]} d6 {[%emt 0:00:15]} 9. c3 {[%emt 0:00:31]} h6 {[%emt 0:03:05]} 10. Nbd2 {[%emt 0:00:24]} Re8 {[%emt 0:00:08]} 11. Nf1 {[%emt 0:01:56]} Bf8 {[%emt 0:00:04]} 12. Ng3 {[%emt 0:01:52]} g6 {[%emt 0:00:38]} 13. h3 {[%emt 0:01:58]} Na5 {[%emt 0:02:14]} 14. Bc2 {[%emt 0:00:34]} c5 {[%emt 0:00:04]} 15. Be3 {[%emt 0:03:38]} Nc6 {[%emt 0:01:27]} 16. d4 {[%emt 0:02:53]} Qc7 {[%emt 0:02:53]} 17. d5 {[%emt 0:06:11]} Ne7 {[%emt 0:02:15]} 18. a4 {[%emt 0:02:54]} Bd7 {[%emt 0:00:43]} 19. Qd2 {[%emt 0:04:02]} Kh7 {[%emt 0:01:25]} 20. Nh2 {[%emt 0:09:02]} g5 {[%emt 0:15:38]} 21. f3 {[%emt 0:01:23]} Ng6 {[%emt 0:08:40]} 22. Ng4 {[%emt 0:02:20]} Nxg4 {[%emt 0:03:30]} 23. hxg4 {[%emt 0:01:38]} Reb8 {[%emt 0:03:17]} 24. a5 {[%emt 0:02:29]} b4 {[%emt 0:01:23]} 25. c4 {[%emt 0:02:12]} Kg8 {[%emt 0:07:45]} 26. Kf2 {[%emt 0:02:37]} b3 {[%emt 0:01:28]} 27. Bd3 {[%emt 0:02:49]} Nf4 {[%emt 0:01:38]} 28. Nf5 {[%emt 0:01:39]} Bxf5 {[%emt 0:00:50]} 29. gxf5 {[%emt 0:00:49]} Bg7 {[%emt 0:05:18]} 30. g3 {[%emt 0:03:32]} Nxd3+ {[%emt 0:01:48]} 31. Qxd3 {[%emt 0:00:48]} Rb4 {[%emt 0:00:50]} 32. Bd2 {[%emt 0:00:12]} Rb7 {[%emt 0:00:31]} 33. Ra3 {[%emt 0:00:48]} Rab8 {[%emt 0:03:34]} 34. Rc1 {[%emt 0:02:01]} Kf8 {[%emt 0:07:15]} 35. Rc3 {[%emt 0:01:42]} Ke7 {[%emt 0:00:01]} 36. Rcxb3 {[%emt 0:00:27]} Kd7 {[%emt 0:00:42]} 37. Rxb7 {[%emt 0:01:11]} Rxb7 {[%emt 0:00:47]} 38. Rb3 {[%emt 0:00:37]} Qb8 {[%emt 0:00:02]} 39. Rxb7+ {[%emt 0:00:18]} Qxb7 {[%emt 0:00:00]} 40. Qa3 {[%emt 0:00:00]} Bf6 {[%emt 0:00:00]} 41. Qa4+ {[%emt 0:02:17]} Kd8 {[%emt 0:03:53]} 42. b4 {[%emt 0:03:38]} cxb4 {[%emt 0:00:15]} 43. Qxb4 {[%emt 0:00:08]} Qxb4 {[%emt 0:00:24]} 44. Bxb4 {[%emt 0:00:33]} Be7 {[%emt 0:00:12]} 45. f6 {[%emt 0:01:36]} Bf8 {[%emt 0:00:39]} 46. f4 {[%emt 0:01:00]} gxf4 {[%emt 0:01:42]} 47. gxf4 {[%emt 0:00:11]} exf4 {[%emt 0:00:04]} 48. e5 {[%emt 0:02:23]} Kd7 {[%emt 0:00:03]} 49. Kf3 {[%emt 0:00:19]} h5 {[%emt 0:00:14]} 50. Bxd6 {[%emt 0:00:27]} Bh6 {[%emt 0:00:40]} 51. c5 {[%emt 0:00:19]} h4 {[%emt 0:00:19]} 1-0

[Event "European School-ch 2019"]
[Site "Mamaia"]
[Date "2019.06.06"]
[Round "7.27"]
[White "Akkas, Doruk"]
[Black "Saioc, David"]
[Result "1-0"]
[ECO "A13"]
[WhiteElo "1565"]
[BlackElo "1744"]
[Annotator "NA RC"]
[PlyCount "71"]
[EventDate "2019.05.31"]
[EventType "swiss"]
[EventCountry "ROU"]
[SourceTitle "playchess.com"]
[Source "ChessBase"]
[SourceQuality "1"]
[TimeControl "40/5400+30:1800+30"]

1. c4 {[%emt 0:00:00]} e6 {[%emt 0:00:00]} 2. g3 {[%emt 0:00:08]} Nf6 {[%emt 0:00:00]} 3. Bg2 {[%emt 0:00:27]} g6 {[%emt 0:00:01]} 4. Nc3 {[%emt 0:01:43]} c5 {[%emt 0:08:55]} 5. Nf3 {[%emt 0:02:11]} Nc6 {[%emt 0:02:06]} 6. O-O {[%emt 0:01:29]} h5 {[%emt 0:04:24]} 7. d4 {[%emt 0:03:44]} cxd4 {[%emt 0:02:30]} 8. Nxd4 {[%emt 0:00:07]} Bg7 {[%emt 0:00:34]} 9. Bg5 {[%emt 0:02:23]} Qb6 {[%emt 0:25:27]} 10. Nxc6 {[%emt 0:03:43]} dxc6 {[%emt 0:02:48]} 11. Qd6 {[%emt 0:02:54]} Ng8 {[%emt 0:08:34]} 12. c5 {[%emt 0:05:18]} Bf8 {[%emt 0:03:27]} 13. Qd4 {[%emt 0:04:20]} Bxc5 {[%emt 0:01:58]} 14. Qxh8 {[%emt 0:01:21]} Bd7 {[%emt 0:01:58]} 15. Na4 {[%emt 0:03:25]} Qb5 {[%emt 0:01:38]} 16. Nxc5 {[%emt 0:01:08]} Qxc5 {[%emt 0:00:07]} 17. Qxg8+ {[%emt 0:00:15]} Qf8 {[%emt 0:00:07]} 18. Qxf8+ {[%emt 0:00:05]} Kxf8 {[%emt 0:00:05]} 19. Rad1 {[%emt 0:00:11]} Ke8 {[%emt 0:00:05]} 20. Rd6 {[%emt 0:00:22]} f6 {[%emt 0:00:16]} 21. Bxf6 {[%emt 0:00:14]} Kf7 {[%emt 0:00:04]} 22. Rxd7+ {[%emt 0:00:05]} Kxf6 {[%emt 0:00:05]} 23. Rxb7 {[%emt 0:00:19]} Rd8 {[%emt 0:00:06]} 24. f4 {[%emt 0:01:15]} Rd2 {[%emt 0:00:28]} 25. Kf2 {[%emt 0:02:20]} e5 {[%emt 0:00:34]} 26. Ke3 {[%emt 0:01:50]} Rd8 {[%emt 0:00:13]} 27. fxe5+ {[%emt 0:00:59]} Kxe5 {[%emt 0:00:06]} 28. Rff7 {[%emt 0:02:58]} Re8 {[%emt 0:00:21]} 29. Rfe7+ {[%emt 0:00:21]} Rxe7 {[%emt 0:00:07]} 30. Rxe7+ {[%emt 0:00:04]} Kd6 {[%emt 0:00:07]} 31. Rg7 {[%emt 0:00:08]} c5 {[%emt 0:00:07]} 32. Rxg6+ {[%emt 0:00:24]} Kd7 {[%emt 0:00:10]} 33. Ke4 {[%emt 0:00:09]} a6 {[%emt 0:00:07]} 34. Kd5 {[%emt 0:00:17]} Kc7 {[%emt 0:00:06]} 35. Kxc5 {[%emt 0:00:08]} Kd7 {[%emt 0:00:04]} 36. Kd5 1-0

[Event "European School-ch 2019"]
[Site "Mamaia"]
[Date "2019.06.06"]
[Round "7.28"]
[White "Zheng, Harry Z"]
[Black "Karimli, Yusif"]
[Result "0-1"]
[ECO "C10"]
[WhiteElo "1653"]
[BlackElo "1470"]
[Annotator "NA RC"]
[PlyCount "108"]
[EventDate "2019.05.31"]
[EventType "swiss"]
[EventCountry "ROU"]
[SourceTitle "playchess.com"]
[Source "ChessBase"]
[SourceQuality "1"]
[TimeControl "40/5400+30:1800+30"]

1. e4 {[%emt 0:00:00]} e6 {[%emt 0:00:00]} 2. d4 {[%emt 0:00:04]} d5 {[%emt 0:00:00]} 3. Nd2 {[%emt 0:00:22]} dxe4 {[%emt 0:00:10]} 4. Nxe4 {[%emt 0:00:34]} Bd7 {[%emt 0:00:25]} 5. Nf3 {[%emt 0:00:37]} Bc6 {[%emt 0:00:08]} 6. Bd3 {[%emt 0:00:27]} Nd7 {[%emt 0:00:37]} 7. O-O {[%emt 0:00:41]} Ngf6 {[%emt 0:00:34]} 8. Ng3 {[%emt 0:00:35]} Be7 {[%emt 0:03:55]} 9. c4 {[%emt 0:00:54]} Bxf3 {[%emt 0:00:30]} 10. Qxf3 {[%emt 0:00:30]} c6 {[%emt 0:00:30]} 11. b3 {[%emt 0:00:30]} O-O {[%emt 0:00:30]} 12. Bb2 {[%emt 0:00:30]} Qb6 {[%emt 0:00:30]} 13. Rad1 {[%emt 0:00:30]} Rad8 {[%emt 0:00:30]} 14. Rfe1 {[%emt 0:00:30]} Rfe8 {[%emt 0:00:30]} 15. a3 {[%emt 0:00:30]} a5 {[%emt 0:00:30]} 16. Bc2 {[%emt 0:00:30]} h6 {[%emt 0:00:30]} 17. h3 {[%emt 0:00:30]} Nf8 {[%emt 0:00:30]} 18. Nf1 {[%emt 0:00:30]} Rd7 {[%emt 0:00:30]} 19. Ne3 {[%emt 0:00:30]} Red8 {[%emt 0:00:30]} 20. d5 {[%emt 0:00:30]} cxd5 21. Bxf6 {[%emt 0:45:43]} Bxf6 {[%emt 0:50:15]} 22. cxd5 {[%emt 0:00:08]} Qc5 {[%emt 0:01:16]} 23. dxe6 {[%emt 0:03:57]} Nxe6 {[%emt 0:00:21]} 24. Rxd7 {[%emt 0:01:12]} Rxd7 {[%emt 0:00:08]} 25. Qe4 {[%emt 0:07:38]} g6 {[%emt 0:00:48]} 26. Rd1 {[%emt 0:06:08]} Rxd1+ {[%emt 0:01:32]} 27. Bxd1 {[%emt 0:00:10]} Bd4 {[%emt 0:03:10]} 28. Kh1 {[%emt 0:10:07]} Qc1 {[%emt 0:00:40]} 29. Qd3 {[%emt 0:02:05]} Bxe3 {[%emt 0:01:29]} 30. fxe3 {[%emt 0:00:07]} Nc5 {[%emt 0:00:13]} 31. Qd8+ {[%emt 0:00:24]} Kh7 {[%emt 0:00:26]} 32. Qd5 {[%emt 0:00:09]} Ne6 {[%emt 0:01:02]} 33. Qd7 {[%emt 0:02:06]} Kg7 {[%emt 0:00:37]} 34. Qd5 {[%emt 0:00:42]} Qxe3 {[%emt 0:00:34]} 35. Qxa5 {[%emt 0:01:19]} Nd4 {[%emt 0:00:22]} 36. Qb4 {[%emt 0:04:25]} Nc6 {[%emt 0:01:14]} 37. Qxb7 {[%emt 0:02:45]} Qe1+ {[%emt 0:00:52]} 38. Kh2 {[%emt 0:00:06]} Qe5+ {[%emt 0:00:17]} 39. g3 {[%emt 0:02:44]} Qb2+ {[%emt 0:00:16]} 40. Kh1 {[%emt 0:00:00]} Qc3 {[%emt 0:00:00]} 41. Qc7 {[%emt 0:02:21]} Qe1+ {[%emt 0:05:19]} 42. Kh2 {[%emt 0:00:53]} Qd2+ {[%emt 0:00:04]} 43. Kh1 {[%emt 0:00:07]} Qxd1+ {[%emt 0:00:04]} 44. Kh2 {[%emt 0:00:06]} Nd4 {[%emt 0:00:44]} 45. Qe5+ {[%emt 0:01:10]} Kh7 {[%emt 0:00:07]} 46. Qe7 {[%emt 0:02:11]} Qf1 {[%emt 0:00:22]} 47. g4 {[%emt 0:01:15]} Qf2+ {[%emt 0:00:07]} 48. Kh1 {[%emt 0:00:19]} Ne2 {[%emt 0:00:12]} 49. Qxe2 {[%emt 0:00:22]} Qxe2 {[%emt 0:00:06]} 50. b4 {[%emt 0:00:09]} f5 {[%emt 0:00:10]} 51. gxf5 {[%emt 0:00:13]} gxf5 {[%emt 0:00:05]} 52. a4 {[%emt 0:00:10]} f4 {[%emt 0:00:06]} 53. b5 {[%emt 0:00:05]} f3 {[%emt 0:00:05]} 54. b6 {[%emt 0:00:02]} Qg2# {[%emt 0:00:06]} 0-1

[Event "European School-ch 2019"]
[Site "Mamaia"]
[Date "2019.06.06"]
[Round "7.29"]
[White "Qalabegashvili, Data"]
[Black "Ochedzan, Filip"]
[Result "1-0"]
[ECO "B23"]
[WhiteElo "1309"]
[BlackElo "1298"]
[Annotator "NA RC"]
[PlyCount "47"]
[EventDate "2019.05.31"]
[EventType "swiss"]
[EventCountry "ROU"]
[SourceTitle "playchess.com"]
[Source "ChessBase"]
[SourceQuality "1"]
[TimeControl "40/5400+30:1800+30"]

1. e4 {[%emt 0:00:00]} c5 {[%emt 0:00:00]} 2. Nc3 {[%emt 0:00:00]} Nc6 {[%emt 0:00:36]} 3. f4 {[%emt 0:00:00]} g6 {[%emt 0:00:48]} 4. Nf3 {[%emt 0:00:08]} Bg7 {[%emt 0:01:30]} 5. Bc4 {[%emt 0:00:31]} e6 {[%emt 0:03:01]} 6. O-O {[%emt 0:00:30]} Nge7 {[%emt 0:01:57]} 7. d3 {[%emt 0:00:52]} O-O {[%emt 0:02:24]} 8. Qe1 {[%emt 0:00:37]} d5 {[%emt 0:02:15]} 9. Bb3 {[%emt 0:00:26]} a6 {[%emt 0:04:42]} 10. a4 {[%emt 0:01:19]} Nb4 {[%emt 0:01:59]} 11. Qh4 {[%emt 0:03:31]} Re8 {[%emt 0:08:30]} 12. Ng5 {[%emt 0:03:20]} h6 {[%emt 0:01:28]} 13. Nf3 {[%emt 0:02:40]} Qb6 {[%emt 0:04:59]} 14. a5 {[%emt 0:00:57]} Qc7 {[%emt 0:01:45]} 15. f5 {[%emt 0:01:37]} exf5 {[%emt 0:08:45]} 16. exd5 {[%emt 0:01:42]} Qd7 {[%emt 0:05:50]} 17. Ba4 {[%emt 0:01:32]} Qd8 {[%emt 0:02:16]} 18. Bxe8 {[%emt 0:01:18]} Qxe8 19. Re1 f6 {[%emt 0:11:16]} 20. d6 {[%emt 0:01:34]} Nxc2 {[%emt 0:03:57]} 21. Rxe7 {[%emt 0:00:25]} Qf8 {[%emt 0:05:26]} 22. Ra4 {[%emt 0:01:04]} Rb8 {[%emt 0:03:31]} 23. Nd5 {[%emt 0:01:28]} Qd8 {[%emt 0:02:40]} 24. Bxh6 {[%emt 0:00:49]} 1-0

[Event "European School-ch 2019"]
[Site "Mamaia"]
[Date "2019.06.06"]
[Round "7.30"]
[White "Durucay, Uygar"]
[Black "Kliashtornyi, Arkadii"]
[Result "1-0"]
[ECO "A45"]
[WhiteElo "1575"]
[BlackElo "1317"]
[Annotator "NA RC"]
[PlyCount "163"]
[EventDate "2019.05.31"]
[EventType "swiss"]
[EventCountry "ROU"]
[SourceTitle "playchess.com"]
[Source "ChessBase"]
[SourceQuality "1"]
[TimeControl "40/5400+30:1800+30"]

1. d4 {[%emt 0:00:00]} Nf6 {[%emt 0:00:00]} 2. Bf4 {[%emt 0:00:46]} d5 {[%emt 0:00:00]} 3. e3 {[%emt 0:00:37]} c5 {[%emt 0:00:00]} 4. c3 {[%emt 0:00:14]} Nc6 {[%emt 0:00:00]} 5. Nd2 {[%emt 0:00:20]} Qb6 {[%emt 0:01:20]} 6. Qc2 {[%emt 0:01:25]} g6 {[%emt 0:04:41]} 7. Bd3 {[%emt 0:04:34]} c4 {[%emt 0:00:43]} 8. Be2 {[%emt 0:00:11]} Bf5 {[%emt 0:00:11]} 9. Qc1 {[%emt 0:00:06]} Rc8 {[%emt 0:20:06]} 10. Ngf3 {[%emt 0:09:16]} Nh5 {[%emt 0:04:23]} 11. Be5 {[%emt 0:01:13]} Nxe5 {[%emt 0:02:57]} 12. Nxe5 {[%emt 0:00:22]} Nf6 {[%emt 0:02:19]} 13. O-O {[%emt 0:04:32]} Nd7 {[%emt 0:03:13]} 14. Nxd7 {[%emt 0:00:32]} Bxd7 {[%emt 0:00:08]} 15. e4 {[%emt 0:00:05]} Bc6 {[%emt 0:06:09]} 16. Bf3 {[%emt 0:02:08]} Qd8 {[%emt 0:07:42]} 17. Re1 {[%emt 0:02:44]} e6 {[%emt 0:02:32]} 18. exd5 {[%emt 0:00:35]} Bxd5 {[%emt 0:00:12]} 19. Bxd5 {[%emt 0:01:02]} Qxd5 {[%emt 0:00:16]} 20. Re5 {[%emt 0:00:59]} Qd8 {[%emt 0:05:10]} 21. Qc2 {[%emt 0:05:08]} Qd7 {[%emt 0:08:11]} 22. d5 {[%emt 0:01:52]} Qb5 {[%emt 0:05:54]} 23. a4 {[%emt 0:02:23]} Qa5 {[%emt 0:01:40]} 24. Re4 {[%emt 0:05:25]} Qxd5 {[%emt 0:01:37]} 25. Rd4 {[%emt 0:00:09]} Qf5 {[%emt 0:01:44]} 26. Qxf5 {[%emt 0:01:28]} gxf5 {[%emt 0:00:17]} 27. Rxc4 {[%emt 0:00:08]} Rxc4 {[%emt 0:01:15]} 28. Nxc4 {[%emt 0:00:03]} Bc5 {[%emt 0:06:25]} 29. b4 {[%emt 0:00:15]} Be7 {[%emt 0:00:39]} 30. Rd1 {[%emt 0:00:28]} f6 {[%emt 0:01:42]} 31. Na5 {[%emt 0:00:21]} b6 {[%emt 0:01:00]} 32. Nc6 {[%emt 0:00:11]} a6 {[%emt 0:01:09]} 33. Kf1 {[%emt 0:01:22]} Rg8 {[%emt 0:00:55]} 34. Nd4 {[%emt 0:01:24]} Kf7 {[%emt 0:02:20]} 35. Re1 {[%emt 0:02:11]} e5 {[%emt 0:03:27]} 36. Nxf5 {[%emt 0:00:10]} Rc8 {[%emt 0:00:27]} 37. Re3 {[%emt 0:00:22]} Ke6 {[%emt 0:01:41]} 38. g4 {[%emt 0:00:50]} Bf8 {[%emt 0:01:06]} 39. Ke2 {[%emt 0:01:54]} h5 {[%emt 0:00:35]} 40. h3 {[%emt 0:00:00]} hxg4 {[%emt 0:00:00]} 41. hxg4 {[%emt 0:00:30]} a5 {[%emt 0:01:24]} 42. bxa5 {[%emt 0:01:33]} bxa5 {[%emt 0:00:08]} 43. Kd3 {[%emt 0:00:24]} Kd5 {[%emt 0:02:51]} 44. Rh3 {[%emt 0:01:31]} e4+ {[%emt 0:05:31]} 45. Kc2 {[%emt 0:00:46]} Bc5 {[%emt 0:02:54]} 46. Rh7 {[%emt 0:01:35]} Ke5 {[%emt 0:07:50]} 47. Ne7 {[%emt 0:04:17]} Rc7 {[%emt 0:02:17]} 48. Ng6+ {[%emt 0:00:12]} Kd6 {[%emt 0:00:05]} 49. Rxc7 {[%emt 0:00:37]} Kxc7 {[%emt 0:00:01]} 50. Nf4 {[%emt 0:00:12]} Bxf2 {[%emt 0:01:16]} 51. Nd5+ {[%emt 0:00:06]} Kd6 {[%emt 0:00:16]} 52. Nxf6 {[%emt 0:00:14]} Ke5 {[%emt 0:00:13]} 53. Nh5 {[%emt 0:00:40]} Bh4 {[%emt 0:01:20]} 54. Kd2 {[%emt 0:00:33]} Bg5+ {[%emt 0:00:20]} 55. Ke2 {[%emt 0:00:09]} Kd5 {[%emt 0:02:55]} 56. Ng3 {[%emt 0:00:38]} Ke5 {[%emt 0:00:17]} 57. Nf5 {[%emt 0:00:31]} Kf4 {[%emt 0:02:39]} 58. Nd6 {[%emt 0:01:22]} Bf6 {[%emt 0:01:06]} 59. c4 {[%emt 0:00:59]} Bd4 {[%emt 0:02:14]} 60. g5 {[%emt 0:01:10]} Kxg5 {[%emt 0:00:31]} 61. Nxe4+ {[%emt 0:01:33]} Kf4 {[%emt 0:00:41]} 62. Kd3 {[%emt 0:00:04]} Bb6 {[%emt 0:00:26]} 63. c5 {[%emt 0:00:23]} Bc7 {[%emt 0:00:12]} 64. Kd4 {[%emt 0:00:08]} Kf3 {[%emt 0:01:50]} 65. Nc3 {[%emt 0:00:19]} Bd8 {[%emt 0:01:06]} 66. c6 {[%emt 0:00:32]} Bf6+ {[%emt 0:00:38]} 67. Kc4 {[%emt 0:00:10]} Be5 {[%emt 0:00:13]} 68. Nd5 {[%emt 0:00:13]} Ke2 {[%emt 0:00:21]} 69. c7 {[%emt 0:00:07]} Bxc7 {[%emt 0:00:04]} 70. Nxc7 {[%emt 0:00:05]} Kd2 {[%emt 0:00:05]} 71. Kb5 {[%emt 0:00:09]} Kc3 {[%emt 0:00:12]} 72. Kxa5 {[%emt 0:00:09]} Kc4 {[%emt 0:00:09]} 73. Kb6 {[%emt 0:00:04]} Kb4 {[%emt 0:00:10]} 74. a5 {[%emt 0:00:04]} Kc4 {[%emt 0:00:11]} 75. a6 {[%emt 0:00:08]} Kb4 {[%emt 0:00:03]} 76. a7 {[%emt 0:00:06]} Kc4 {[%emt 0:00:02]} 77. a8=Q {[%emt 0:00:12]} Kb4 {[%emt 0:00:03]} 78. Qe4+ {[%emt 0:00:14]} Kc3 {[%emt 0:00:08]} 79. Nd5+ {[%emt 0:00:07]} Kb3 {[%emt 0:00:11]} 80. Qd3+ {[%emt 0:00:09]} Ka4 {[%emt 0:00:11]} 81. Kc5 {[%emt 0:00:43]} Ka5 {[%emt 0:00:09]} 82. Qa3# {[%emt 0:00:04]} 1-0

[Event "European School-ch 2019"]
[Site "Mamaia"]
[Date "2019.06.06"]
[Round "7.31"]
[White "Tutunculer, Cagan"]
[Black "Paunescu, Stefan-Vlad"]
[Result "0-1"]
[ECO "A21"]
[WhiteElo "1193"]
[BlackElo "1358"]
[Annotator "NA RC"]
[PlyCount "56"]
[EventDate "2019.05.31"]
[EventType "swiss"]
[EventCountry "ROU"]
[SourceTitle "playchess.com"]
[Source "ChessBase"]
[SourceQuality "1"]
[TimeControl "40/5400+30:1800+30"]

1. c4 {[%emt 0:00:00]} e5 {[%emt 0:00:00]} 2. Nc3 {[%emt 0:00:03]} Bb4 {[%emt 0:00:00]} 3. g3 {[%emt 0:00:37]} Bxc3 {[%emt 0:00:37]} 4. bxc3 {[%emt 0:00:49]} d6 {[%emt 0:00:29]} 5. Bg2 {[%emt 0:01:23]} f5 {[%emt 0:01:10]} 6. e3 {[%emt 0:03:26]} Nf6 {[%emt 0:01:15]} 7. Ne2 {[%emt 0:01:19]} Nc6 {[%emt 0:02:15]} 8. O-O {[%emt 0:05:22]} O-O {[%emt 0:02:17]} 9. d3 {[%emt 0:04:15]} Qe8 {[%emt 0:01:36]} 10. Bb2 {[%emt 0:02:28]} Qh5 {[%emt 0:01:33]} 11. h3 {[%emt 0:08:00]} f4 {[%emt 0:01:06]} 12. exf4 {[%emt 0:07:57]} Bxh3 {[%emt 0:00:40]} 13. f3 {[%emt 0:01:16]} Bxg2 {[%emt 0:00:13]} 14. Kxg2 {[%emt 0:00:18]} Qg6 {[%emt 0:03:39]} 15. Qd2 {[%emt 0:08:31]} Nh5 {[%emt 0:00:43]} 16. fxe5 {[%emt 0:06:14]} Nxe5 {[%emt 0:00:40]} 17. Rad1 {[%emt 0:02:29]} Rae8 {[%emt 0:00:50]} 18. Rf2 {[%emt 0:09:14]} Qf6 {[%emt 0:07:17]} 19. f4 {[%emt 0:07:55]} Ng4 {[%emt 0:01:35]} 20. Rf3 {[%emt 0:00:54]} Qe6 {[%emt 0:01:40]} 21. Nd4 {[%emt 0:02:38]} Ne3+ {[%emt 0:00:28]} 22. Kh2 {[%emt 0:00:21]} Qh6 {[%emt 0:04:04]} 23. Rb1 {[%emt 0:10:07]} Nxf4+ {[%emt 0:00:22]} 24. Kg1 {[%emt 0:00:24]} Nh3+ {[%emt 0:00:08]} 25. Kh1 {[%emt 0:00:21]} Nf2+ {[%emt 0:01:19]} 26. Kg1 {[%emt 0:00:25]} Qh1+ {[%emt 0:00:31]} 27. Kxf2 {[%emt 0:00:33]} Qg2+ {[%emt 0:00:40]} 28. Ke1 {[%emt 0:00:40]} Nxc4+ {[%emt 0:00:08]} 0-1

[Event "European School-ch 2019"]
[Site "Mamaia"]
[Date "2019.06.06"]
[Round "7.32"]
[White "Danila, Tudor-Gabriel"]
[Black "Dias, Ruwan"]
[Result "1-0"]
[ECO "C05"]
[WhiteElo "1336"]
[BlackElo "1359"]
[Annotator "NA RC"]
[PlyCount "83"]
[EventDate "2019.05.31"]
[EventType "swiss"]
[EventCountry "ROU"]
[SourceTitle "playchess.com"]
[Source "ChessBase"]
[SourceQuality "1"]
[TimeControl "40/5400+30:1800+30"]

1. e4 {[%emt 0:00:00]} e6 {[%emt 0:00:00]} 2. d4 d5 {[%emt 0:00:00]} 3. Nd2 {[%emt 0:00:00]} Nf6 {[%emt 0:00:00]} 4. e5 {[%emt 0:00:00]} Nfd7 {[%emt 0:00:00]} 5. Bd3 {[%emt 0:00:00]} c5 {[%emt 0:00:21]} 6. c3 {[%emt 0:00:00]} Nc6 {[%emt 0:00:13]} 7. Ne2 {[%emt 0:00:03]} Be7 {[%emt 0:01:29]} 8. Nf3 {[%emt 0:00:14]} O-O {[%emt 0:01:18]} 9. O-O {[%emt 0:00:05]} cxd4 {[%emt 0:01:36]} 10. cxd4 {[%emt 0:00:22]} f6 {[%emt 0:03:33]} 11. Nf4 {[%emt 0:24:00]} Nb6 {[%emt 0:13:19]} 12. Re1 {[%emt 0:01:16]} f5 {[%emt 0:07:30]} 13. h3 {[%emt 0:17:01]} Qc7 {[%emt 0:15:56]} 14. Bd2 {[%emt 0:00:22]} Bd7 {[%emt 0:03:05]} 15. Rc1 {[%emt 0:00:37]} Rae8 {[%emt 0:02:55]} 16. b4 {[%emt 0:07:19]} Qd8 {[%emt 0:05:23]} 17. Qb3 {[%emt 0:01:19]} a6 {[%emt 0:04:07]} 18. b5 {[%emt 0:05:45]} axb5 {[%emt 0:00:30]} 19. Bxb5 {[%emt 0:01:06]} Kh8 {[%emt 0:04:13]} 20. Bxc6 {[%emt 0:04:27]} bxc6 {[%emt 0:00:52]} 21. Ba5 {[%emt 0:00:13]} Qb8 {[%emt 0:02:54]} 22. Bxb6 {[%emt 0:03:33]} Bd8 {[%emt 0:00:48]} 23. Bxd8 {[%emt 0:00:07]} Qxb3 {[%emt 0:00:24]} 24. axb3 {[%emt 0:00:10]} Rxd8 {[%emt 0:00:21]} 25. Nd2 {[%emt 0:00:44]} Rb8 {[%emt 0:02:13]} 26. Nd3 {[%emt 0:00:32]} Rfe8 {[%emt 0:03:04]} 27. Nc5 {[%emt 0:00:11]} Bc8 {[%emt 0:00:40]} 28. Ra1 {[%emt 0:00:15]} Re7 {[%emt 0:03:07]} 29. Ra4 {[%emt 0:00:30]} h6 {[%emt 0:01:30]} 30. Rea1 {[%emt 0:00:06]} g5 {[%emt 0:04:08]} 31. Ra8 {[%emt 0:00:15]} Rxa8 {[%emt 0:01:45]} 32. Rxa8 {[%emt 0:00:10]} Re8 {[%emt 0:00:08]} 33. Nxe6 {[%emt 0:00:13]} Bd7 {[%emt 0:00:24]} 34. Rxe8+ {[%emt 0:00:24]} Bxe8 {[%emt 0:00:22]} 35. Kf1 {[%emt 0:00:23]} Bd7 {[%emt 0:00:37]} 36. Nc5 {[%emt 0:00:21]} Be8 {[%emt 0:00:38]} 37. b4 {[%emt 0:00:30]} g4 {[%emt 0:00:32]} 38. h4 {[%emt 0:00:25]} h5 {[%emt 0:01:42]} 39. Ndb3 {[%emt 0:00:06]} Kg8 {[%emt 0:01:25]} 40. Na5 {[%emt 0:00:00]} Kf7 {[%emt 0:00:00]} 41. Na6 {[%emt 0:00:49]} c5 {[%emt 0:01:15]} 42. Nxc5 {[%emt 0:00:07]} 1-0

[Event "European School-ch 2019"]
[Site "Mamaia"]
[Date "2019.06.06"]
[Round "7.33"]
[White "Anghelescu, Teodor-Stefan"]
[Black "Celik, Ali Alper"]
[Result "0-1"]
[ECO "A45"]
[WhiteElo "1266"]
[BlackElo "1169"]
[Annotator "NA RC"]
[PlyCount "56"]
[EventDate "2019.05.31"]
[EventType "swiss"]
[EventCountry "ROU"]
[SourceTitle "playchess.com"]
[Source "ChessBase"]
[SourceQuality "1"]
[TimeControl "40/5400+30:1800+30"]

1. d4 {[%emt 0:00:00]} Nf6 {[%emt 0:00:00]} 2. Bf4 {[%emt 0:00:00]} g6 {[%emt 0:00:00]} 3. Nc3 {[%emt 0:00:00]} d5 {[%emt 0:00:00]} 4. e3 {[%emt 0:00:00]} Bg7 {[%emt 0:00:07]} 5. h4 {[%emt 0:00:14]} c5 {[%emt 0:05:37]} 6. Nb5 {[%emt 0:00:25]} Na6 {[%emt 0:05:59]} 7. Nf3 {[%emt 0:00:30]} Qa5+ 8. c3 {[%emt 0:00:25]} Bd7 {[%emt 0:13:31]} 9. a4 {[%emt 0:00:16]} cxd4 {[%emt 0:10:36]} 10. exd4 {[%emt 0:00:11]} Nh5 {[%emt 0:14:20]} 11. Be5 {[%emt 0:05:55]} f6 {[%emt 0:07:20]} 12. Bh2 {[%emt 0:02:06]} O-O {[%emt 0:01:56]} 13. Be2 {[%emt 0:02:01]} Rae8 {[%emt 0:08:17]} 14. O-O {[%emt 0:04:33]} Bh6 {[%emt 0:03:56]} 15. Nd2 {[%emt 0:01:21]} Nf4 {[%emt 0:04:20]} 16. Bg4 {[%emt 0:00:50]} Bxg4 {[%emt 0:04:57]} 17. Qxg4 {[%emt 0:00:10]} e5 {[%emt 0:00:38]} 18. Bxf4 {[%emt 0:03:32]} Bxf4 {[%emt 0:01:19]} 19. Nb3 {[%emt 0:01:17]} Qd8 {[%emt 0:01:40]} 20. g3 {[%emt 0:03:25]} f5 {[%emt 0:00:47]} 21. Qf3 {[%emt 0:00:37]} Bh6 {[%emt 0:00:25]} 22. dxe5 {[%emt 0:01:36]} f4 {[%emt 0:03:08]} 23. Qd3 {[%emt 0:10:13]} f3 {[%emt 0:02:11]} 24. N3d4 {[%emt 0:01:05]} Nc5 {[%emt 0:02:01]} 25. Qc2 {[%emt 0:01:52]} Qd7 {[%emt 0:02:05]} 26. e6 {[%emt 0:00:52]} Rxe6 {[%emt 0:00:19]} 27. Nxe6 {[%emt 0:02:31]} Qxe6 {[%emt 0:00:43]} 28. Kh2 {[%emt 0:01:15]} Rf4 {[%emt 0:01:34]} 0-1